bitfinex-derivatives/quotes_BTCF0:USTF0_20251128
["timestamp","ask_amount","ask_price","bid_price","bid_amount"]
[1764352806288,0.04452,90661.0,90660.0,0.2690024]
[1764352806471,0.01399,90675.0,90640.0,0.26797439]
[1764352806472,0.04452,90651.0,90640.0,0.26797439]
[1764352806676,0.03556,90645.0,90641.0,0.0110303]
[1764352806981,0.04452,90655.0,90654.0,0.0110286]
[1764352807368,0.00016539,90664.0,90663.0,0.04219]
[1764352808576,0.02157,90659.0,90650.0,0.26797439]
[1764352808973,0.02157,90651.0,90650.0,0.26797439]
[1764352809168,0.02157,90651.0,90649.0,0.0110293]
[1764352809374,0.00116539,90664.0,90658.0,0.0110281]
[1764352809569,0.00116539,90664.0,90663.0,0.04219]
[1764352810169,0.02273539,90664.0,90662.0,0.0110277]
[1764352810369,0.02273539,90664.0,90654.0,0.2579744]
[1764352810370,0.04452,90658.0,90657.0,0.0110282]
[1764352810569,0.04452,90658.0,90654.0,0.2579744]
[1764352810778,0.04452,90658.0,90600.0,0.0096]
[1764352810779,0.04452,90641.0,90631.0,0.0110314]
[1764352811080,0.04452,90641.0,90630.0,0.2579744]
[1764352811081,0.04452,90644.0,90637.0,0.0110307]
[1764352811274,0.04452,90638.0,90630.0,0.26797439]
[1764352811477,0.02157,90631.0,90630.0,0.0110316]
[1764352811782,0.04452,90626.0,90623.0,0.01212429]
[1764352811974,0.04452,90626.0,90625.0,0.01114335]
[1764352812283,0.04452,90626.0,90625.0,0.00011115]
[1764352812683,0.0141555,90645.0,90632.0,0.0110313]
[1764352812885,0.02157,90636.0,90632.0,0.0110313]
[1764352813079,0.04452,90626.0,90625.0,0.00011115]
[1764352813281,0.0555521,90626.0,90625.0,0.00011115]
[1764352813481,0.04452,90626.0,90625.0,0.00011115]
[1764352813689,0.0555521,90626.0,90625.0,0.00011115]
[1764352813887,0.4355521,90626.0,90625.0,0.00011115]
[1764352814284,0.07452,90626.0,90625.0,0.00011115]
[1764352814489,0.21452,90626.0,90625.0,0.00311115]
[1764352814683,0.04452,90626.0,90625.0,0.00311115]
[1764352814890,0.04452,90626.0,90625.0,0.00011115]
[1764352815683,0.0141555,90645.0,90641.0,0.0110303]
[1764352815988,0.0001655,90645.0,90644.0,0.04322]
[1764352816181,0.0001655,90645.0,90644.0,0.02126]
[1764352816388,0.0223055,90645.0,90641.0,0.0110303]
[1764352816775,0.0001655,90645.0,90644.0,0.04322]
[1764352817285,0.04432,90636.0,90635.0,0.2579744]
[1764352817485,0.04432,90633.0,90632.0,0.0110314]
[1764352817784,0.0001655,90645.0,90644.0,0.04322]
[1764352817986,0.2708544,90690.0,90659.0,0.0110281]
[1764352817987,0.0250162,90675.0,90659.0,0.0110281]
[1764352818187,0.0250162,90675.0,90641.0,0.0120302]
[1764352818188,0.04432,90672.0,90671.0,0.0110266]
[1764352818491,0.01399,90675.0,90671.0,0.0110266]
[1764352818691,0.02214,90682.0,90681.0,0.0110254]
[1764352818887,0.01288,90720.0,90690.0,0.00999999]
[1764352819087,0.04432,90703.0,90695.0,0.2579744]
[1764352819281,0.0553428,90703.0,90698.0,0.0110233]
[1764352819481,0.00016539,90707.0,90704.0,0.0110226]
[1764352819683,0.02214,90701.0,90699.0,0.0110232]
[1764352819889,0.00016539,90707.0,90705.0,0.0110224]
[1764352820086,0.00016539,90707.0,90706.0,0.04322]
[1764352820288,0.01288,90750.0,90706.0,0.04322]
[1764352820289,0.02214,90726.0,90725.0,0.0110201]
[1764352820485,0.01288,90750.0,90730.0,0.0110195]
[1764352820486,0.0110178,90744.0,90730.0,0.0110195]
[1764352820691,0.01288,90780.0,90730.0,0.00999999]
[1764352820888,0.0110148,90769.0,90753.0,0.2579744]
[1764352821087,0.01288,90780.0,90705.0,0.001]
[1764352821088,0.04432,90741.0,90705.0,0.001]
[1764352821391,1.5,90762.0,90734.0,0.0110189]
[1764352821392,0.02214,90735.0,90734.0,0.0110189]
[1764352822094,0.02214,90742.0,90736.0,0.0110187]
[1764352822291,0.0001653,90744.0,90741.0,0.0110181]
[1764352823086,0.0001653,90744.0,90743.0,0.02126]
[1764352823286,0.02156,90780.0,90743.0,0.02126]
[1764352823287,0.17588,90817.0,90765.0,0.0542352]
[1764352823489,0.0110128,90785.0,90756.0,0.2579744]
[1764352823695,0.0110128,90785.0,90760.0,0.00999999]
[1764352823696,1.5,90784.0,90760.0,0.00999999]
[1764352823881,1.5,90784.0,90763.0,0.0110153]
[1764352824088,1.5,90784.0,90770.0,0.00999999]
[1764352824396,1.5,90784.0,90779.0,0.0110134]
[1764352824689,1.5,90784.0,90774.0,0.2579744]
[1764352824690,1.5,90784.0,90775.0,0.011014]
[1764352825087,1.5,90784.0,90770.0,0.00999999]
[1764352825088,0.02214,90775.0,90770.0,0.00999999]
[1764352825388,1.5,90784.0,90776.0,0.0110138]
[1764352825989,1.5,90784.0,90780.0,0.0110134]
[1764352826188,0.00027531,90806.0,90780.0,0.42999999]
[1764352826384,0.00027531,90806.0,90800.0,0.00999999]
[1764352826584,0.00027531,90806.0,90790.0,0.00999999]
[1764352826585,0.02235,90791.0,90790.0,0.00999999]
[1764352826786,1.5,90805.0,90800.0,0.00999999]
[1764352826982,0.04482,90801.0,90790.0,0.21478543]
[1764352827286,0.04482,90801.0,90791.0,0.011012]
[1764352827482,0.04482,90801.0,90790.0,0.21478543]
[1764352827687,0.04582,90791.0,90787.0,0.0110125]
[1764352827993,0.02235,90788.0,90787.0,0.0110125]
[1764352828291,1.50016519,90805.0,90800.0,0.00999999]
[1764352828488,0.002,90801.0,90794.0,0.0110117]
[1764352828687,0.04482,90791.0,90790.0,0.00999999]
[1764352828887,0.04482,90791.0,90721.0,0.07893983]
[1764352828888,0.02235,90771.0,90761.0,0.0110156]
[1764352829192,0.04482,90761.0,90750.0,0.21478543]
[1764352829386,0.04482,90761.0,90727.0,0.08607021]
[1764352829387,0.1258357,90761.0,90740.0,0.20478544]
[1764352829589,0.02235,90751.0,90741.0,0.0110181]
[1764352829788,0.02235,90751.0,90720.0,0.21206544]
[1764352829789,0.02235,90751.0,90730.0,0.0110195]
[1764352830099,0.04482,90741.0,90736.0,0.0110186]
[1764352830794,0.04482,90741.0,90736.0,0.0110187]
[1764352830993,0.04482,90741.0,90731.0,0.01118459]
[1764352831490,0.04482,90741.0,90736.0,0.001]
[1764352832205,0.04482,90737.0,90736.0,0.001]
[1764352832501,0.01359,90725.0,90701.0,0.0110229]
[1764352832701,0.0110208,90719.0,90705.0,0.0110224]
[1764352833099,0.01359,90725.0,90712.0,0.0110216]
[1764352833394,0.01359,90725.0,90700.0,0.20478544]
[1764352833395,0.04482,90713.0,90709.0,0.00016529]
[1764352833602,0.02247,90710.0,90709.0,0.00016529]
[1764352834699,0.011021,90718.0,90709.0,0.00016529]
[1764352834700,0.0110204,90723.0,90713.0,0.0110214]
[1764352834905,0.07467,90725.0,90713.0,0.0110215]
[1764352835297,0.04482,90713.0,90712.0,0.001]
[1764352836192,0.04482,90710.0,90709.0,0.00016529]
[1764352836493,0.04482,90710.0,90709.0,0.00116529]
[1764352836888,0.04482,90710.0,90709.0,0.00016529]
[1764352837094,0.002,90713.0,90710.0,0.0110219]
[1764352837596,0.002,90713.0,90709.0,0.00016529]
[1764352837597,0.04582,90710.0,90709.0,0.00016529]
[1764352839208,0.04482,90710.0,90709.0,0.00016529]
[1764352839394,0.40482,90710.0,90709.0,0.00016529]
[1764352839892,0.40582,90710.0,90709.0,0.00016529]
[1764352841503,0.04482,90691.0,90690.0,0.20478544]
[1764352841803,0.04482,90690.0,90689.0,0.00012965]
[1764352842012,0.001,90710.0,90700.0,0.0110231]
[1764352842299,0.04482,90690.0,90689.0,0.00012965]
[1764352843797,0.04582,90690.0,90689.0,0.01112965]
[1764352844598,0.0110221,90709.0,90689.0,0.01112965]
[1764352844599,0.0110193,90732.0,90702.0,0.0110228]
[1764352844799,0.04482,90698.0,90697.0,0.0110234]
[1764352845596,0.01359,90704.0,90701.0,0.0110229]
[1764352845903,0.04482,90702.0,90701.0,0.0110229]
[1764352846401,0.03682,90694.0,90693.0,0.0110239]
[1764352847003,0.02982,90694.0,90693.0,0.0110239]
[1764352847504,0.001,90702.0,90701.0,0.04552]
[1764352848703,0.0110209,90719.0,90701.0,0.04552]
[1764352849307,0.001,90702.0,90701.0,0.04952]
[1764352849604,0.04482,90734.0,90733.0,0.0110191]
[1764352850403,0.00999999,90780.0,90732.0,0.02308]
[1764352850404,0.011017,90751.0,90732.0,0.02308]
[1764352850610,0.04482,90732.0,90731.0,0.0110192]
[1764352850907,0.10482,90732.0,90731.0,0.0110192]
[1764352851109,0.04482,90732.0,90731.0,0.0110192]
[1764352851499,0.04482,90730.0,90729.0,0.00016538]
[1764352851701,0.01359,90720.0,90701.0,0.0110229]
[1764352851904,0.01359,90720.0,90700.0,0.20478544]
[1764352851905,0.04482,90716.0,90715.0,0.0110212]
[1764352852908,0.04782,90716.0,90715.0,0.0120212]
[1764352854415,0.10782,90716.0,90715.0,0.001]
[1764352855310,0.04782,90716.0,90715.0,0.001]
[1764352856720,0.003,90716.0,90715.0,0.04377]
[1764352857107,0.00016538,90725.0,90724.0,0.0110202]
[1764352857312,0.00016538,90725.0,90715.0,0.001]
[1764352857313,0.0221,90721.0,90720.0,0.0110206]
[1764352858609,0.0221,90721.0,90720.0,0.0120206]
[1764352858610,0.04922,90721.0,90720.0,0.0120206]
[1764352859011,0.04922,90721.0,90720.0,0.001]
[1764352859217,0.41922,90721.0,90720.0,0.001]
[1764352859419,0.04422,90707.0,90706.0,0.00016538]
[1764352860010,0.50422,90707.0,90706.0,0.00016538]
[1764352860318,0.0110263,90674.0,90665.0,0.07893983]
[1764352860521,0.0221,90666.0,90664.0,0.0110274]
[1764352860820,0.0721,90666.0,90664.0,0.0110274]
[1764352861020,0.0110275,90664.0,90654.0,0.0110286]
[1764352861317,0.0110275,90664.0,90650.0,0.20478544]
[1764352861318,0.41,90664.0,90650.0,0.20478544]
[1764352861516,0.0110289,90653.0,90641.0,0.0110302]
[1764352861711,0.00012167,90652.0,90634.0,0.07893983]
[1764352861914,0.01349,90645.0,90621.0,0.0110326]
[1764352862113,0.81349,90645.0,90620.0,0.20478544]
[1764352862314,0.0110312,90634.0,90620.0,0.21622618]
[1764352862617,0.0110316,90631.0,90620.0,0.21622618]
[1764352862822,0.0221,90609.0,90608.0,0.00010704]
[1764352863022,0.41432432,90609.0,90608.0,0.00010704]
[1764352863213,0.46432432,90609.0,90608.0,0.00010704]
[1764352863411,0.66432432,90609.0,90608.0,0.00010704]
[1764352863610,0.69432432,90609.0,90608.0,0.00010704]
[1764352863814,0.04422,90607.0,90606.0,0.00027592]
[1764352864015,0.04422,90607.0,90564.0,0.07893983]
[1764352864016,0.67,90607.0,90570.0,0.20478544]
[1764352864319,0.0110368,90588.0,90570.0,0.21582424]
[1764352864512,0.6510368,90588.0,90570.0,0.21582424]
[1764352864707,0.00016557,90598.0,90590.0,0.0110364]
[1764352864911,0.00016557,90598.0,90578.0,0.20478544]
[1764352864912,1.50012573,90597.0,90584.0,0.0110371]
[1764352865117,1.50012573,90597.0,90576.0,0.01287]
[1764352865118,0.85,90597.0,90566.0,0.01204079]
[1764352865322,0.0221,90567.0,90566.0,0.00027604]
[1764352865715,0.04422,90571.0,90570.0,0.005]
[1764352866016,0.04422,90567.0,90566.0,0.00027604]
[1764352866220,0.0110406,90557.0,90536.0,0.011043]
[1764352866417,0.00027662,90556.0,90531.0,0.0110436]
[1764352866634,0.50027662,90556.0,90530.0,0.20478544]
[1764352866922,0.04422,90535.0,90527.0,0.0110441]
[1764352867116,0.04422,90535.0,90520.0,0.20478544]
[1764352867117,8.855e-05,90535.0,90533.0,0.0110434]
[1764352867331,8.855e-05,90535.0,90534.0,0.04287534]
[1764352867509,0.00016566,90556.0,90534.0,0.44287534]
[1764352867715,0.00016566,90556.0,90555.0,0.04277]
[1764352868114,0.00016566,90556.0,90550.0,0.0110413]
[1764352868523,0.37016566,90556.0,90539.0,0.0110426]
[1764352868822,0.37016566,90556.0,90538.0,0.0110428]
[1764352869019,0.46016566,90556.0,90538.0,0.0110428]
[1764352869224,0.46016566,90556.0,90534.0,0.00010534]
[1764352869225,0.73216566,90556.0,90534.0,0.00010534]
[1764352869618,0.0110409,90554.0,90535.0,0.0110432]
[1764352869817,0.7310409,90554.0,90535.0,0.0110432]
[1764352870020,0.5764,90554.0,90539.0,0.0110426]
[1764352870219,0.6974409,90554.0,90535.0,0.0110432]
[1764352870420,0.9674409,90554.0,90535.0,0.0110432]
[1764352871226,0.4,90554.0,90540.0,0.0110425]
[1764352871427,0.36,90554.0,90544.0,0.011042]
[1764352871621,0.36,90554.0,90534.0,0.00010534]
[1764352871622,0.36,90554.0,90539.0,0.0110427]
[1764352871823,0.36,90554.0,90544.0,0.011042]
[1764352872021,0.04422,90535.0,90534.0,0.00010534]
[1764352872422,0.004,90554.0,90534.0,0.00010534]
[1764352872619,0.007,90554.0,90542.0,0.0110423]
[1764352872818,0.007,90554.0,90534.0,0.00010534]
[1764352872819,0.557,90554.0,90534.0,0.00010534]
[1764352873029,0.0221,90535.0,90534.0,0.00010534]
[1764352873332,0.05122,90535.0,90534.0,0.00010534]
[1764352873633,0.42122,90535.0,90534.0,0.00010534]
[1764352873839,0.06122,90535.0,90534.0,0.00010534]
[1764352874130,0.007,90535.0,90534.0,0.00010534]
[1764352874629,0.05122,90535.0,90534.0,0.00010534]
[1764352874818,0.04422,90535.0,90534.0,0.00010534]
[1764352875020,0.04422,90535.0,90514.0,0.0110457]
[1764352875021,0.045,90527.0,90514.0,0.0110457]
[1764352875330,0.045,90527.0,90496.0,0.0110479]
[1764352875531,0.045,90527.0,90520.0,0.0110455]
[1764352875727,0.045,90527.0,90505.0,0.05]
[1764352875922,0.00011431,90526.0,90522.0,0.0110452]
[1764352876232,0.00011431,90526.0,90518.0,0.0110457]
[1764352876427,0.00011431,90526.0,90505.0,0.06143832]
[1764352876428,0.02174,90518.0,90517.0,0.0110453]
[1764352876621,0.00011431,90526.0,90521.0,0.0110448]
[1764352876820,0.36011431,90526.0,90521.0,0.0110448]
[1764352877032,0.00011431,90526.0,90525.0,0.0550244]
[1764352877623,0.00016566,90536.0,90535.0,0.04398]
[1764352877825,0.0110406,90566.0,90526.0,0.37435503]
[1764352878027,0.39,90566.0,90555.0,0.0110418]
[1764352878227,1.5,90567.0,90561.0,0.0110411]
[1764352878418,1.5,90567.0,90540.0,0.01326]
[1764352878419,1.5,90567.0,90563.0,0.0110408]
[1764352878629,0.008,90593.0,90566.0,0.0110404]
[1764352878928,0.00016566,90589.0,90570.0,0.00016566]
[1764352879139,0.011038,90587.0,90574.0,0.0110395]
[1764352879320,0.83,90587.0,90570.0,0.00016566]
[1764352880030,0.045,90571.0,90570.0,0.00016566]
[1764352880230,0.445,90571.0,90570.0,0.00016566]
[1764352880533,0.02174,90554.0,90553.0,0.0110421]
[1764352880728,0.01354,90576.0,90556.0,0.0110417]
[1764352880930,0.44354,90576.0,90567.0,0.0110404]
[1764352881135,0.4545793,90576.0,90567.0,0.0110404]
[1764352881339,0.17648,90579.0,90570.0,0.01104]
[1764352881531,0.018,90571.0,90570.0,0.01104]
[1764352882027,0.37,90571.0,90560.0,0.0110412]
[1764352882227,0.37,90571.0,90540.0,0.38761503]
[1764352882422,0.38104,90571.0,90542.0,0.0110434]
[1764352882631,0.0110403,90568.0,90542.0,0.4210434]
[1764352882936,0.02,90571.0,90568.0,0.0110402]
[1764352883335,0.02,90571.0,90570.0,0.04398]
[1764352884335,0.02,90571.0,90559.0,0.00871]
[1764352884336,0.00016566,90575.0,90571.0,0.0110399]
[1764352884631,0.0110398,90572.0,90568.0,0.0110402]
[1764352884838,0.02,90571.0,90568.0,0.0110402]
[1764352885339,0.00016566,90575.0,90574.0,0.0550195]
[1764352885541,0.02016566,90575.0,90574.0,0.0550195]
[1764352886128,0.01354,90612.0,90574.0,0.3810395]
[1764352886330,0.0110355,90607.0,90601.0,0.0110362]
[1764352886532,0.0110352,90610.0,90601.0,0.0110362]
[1764352886729,1.5,90609.0,90584.0,0.0110382]
[1764352886931,0.0110354,90608.0,90601.0,0.0110362]
[1764352887124,1.87,90609.0,90606.0,0.0110356]
[1764352887125,1.5,90609.0,90606.0,0.0110356]
[1764352887333,1.5,90609.0,90608.0,0.0214]
[1764352887538,1.5,90609.0,90596.0,0.0110368]
[1764352887835,0.0110355,90608.0,90595.0,0.00016555]
[1764352888032,1.509,90609.0,90595.0,0.00016555]
[1764352888033,1.509,90609.0,90608.0,0.04459]
[1764352888429,1.513,90609.0,90608.0,0.04559]
[1764352889235,1.514,90609.0,90608.0,0.04559]
[1764352889840,0.014,90609.0,90608.0,0.04559]
[1764352891635,0.014,90609.0,90608.0,0.42559]
[1764352891844,0.17632,90637.0,90624.0,0.0110333]
[1764352892037,0.0110319,90637.0,90628.0,0.0110329]
[1764352892228,1.5,90636.0,90620.0,0.25838006]
[1764352892737,1.5,90636.0,90608.0,0.001]
[1764352892738,0.04351,90609.0,90608.0,0.001]
[1764352893429,0.04351,90609.0,90603.0,0.0110359]
[1764352893632,0.04351,90609.0,90599.0,0.00016555]
[1764352893633,0.04351,90600.0,90599.0,0.00016555]
[1764352893935,0.02217,90608.0,90607.0,0.0110354]
[1764352894140,0.00016555,90618.0,90608.0,0.003]
[1764352894141,0.001,90609.0,90608.0,0.003]
[1764352894444,0.04451,90609.0,90608.0,0.003]
[1764352894743,0.0110349,90613.0,90609.0,0.0110353]
[1764352894934,0.04351,90603.0,90599.0,0.00516555]
[1764352895241,0.04351,90600.0,90599.0,0.01620205]
[1764352895438,0.04351,90600.0,90599.0,0.00516555]
[1764352895839,0.46351,90600.0,90599.0,0.00516555]
[1764352896349,0.46351,90600.0,90570.0,0.25838006]
[1764352896350,0.0110383,90585.0,90570.0,0.25838006]
[1764352896545,0.04351,90583.0,90582.0,0.0110385]
[1764352896737,0.02217,90583.0,90582.0,0.0110385]
[1764352897045,0.04351,90583.0,90582.0,0.0110385]
[1764352897639,0.04351,90578.0,90577.0,0.0110391]
[1764352898134,0.001,90583.0,90582.0,0.0556286]
[1764352898335,0.001,90583.0,90582.0,0.4756286]
[1764352898736,0.001,90583.0,90582.0,0.4356286]
[1764352898938,0.001,90583.0,90582.0,0.0556286]
[1764352899138,0.04351,90579.0,90578.0,0.011039]
[1764352899344,0.0110388,90580.0,90573.0,0.00016555]
[1764352899345,0.0545495,90574.0,90573.0,0.00016555]
[1764352899835,0.04351,90574.0,90573.0,0.01120525]
[1764352900035,0.0110392,90577.0,90573.0,0.01120525]
[1764352900036,0.001,90578.0,90577.0,0.0110392]
[1764352900237,0.001,90578.0,90577.0,0.0556292]
[1764352900630,0.04351,90590.0,90589.0,0.0110377]
[1764352901044,0.01389555,90592.0,90589.0,0.0110376]
[1764352901340,0.00016555,90592.0,90591.0,0.04459]
[1764352902245,0.00027592,90606.0,90605.0,0.0110358]
[1764352902742,0.00027592,90606.0,90605.0,0.0556258]
[1764352903341,0.00127592,90606.0,90605.0,0.0556258]
[1764352904043,0.00127592,90606.0,90605.0,0.0110358]
[1764352904354,0.00127592,90606.0,90605.0,0.0556258]
[1764352905038,0.00127592,90606.0,90605.0,0.4256258]
[1764352905838,0.00027592,90606.0,90605.0,0.4256258]
[1764352906057,0.00027592,90606.0,90605.0,0.0576258]
[1764352906752,0.00027592,90606.0,90605.0,0.4376258]
[1764352907451,0.00016555,90615.0,90614.0,0.0556247]
[1764352907642,0.00016555,90615.0,90614.0,0.4756247]
[1764352908943,1.5,90636.0,90635.0,0.0110321]
[1764352909343,1.5,90636.0,90635.0,0.0556221]
[1764352909637,0.08853187,90661.0,90635.0,0.4]
[1764352909840,0.04351,90665.0,90664.0,0.0110286]
[1764352910042,1.5,90665.0,90664.0,0.0556186]
[1764352910748,0.00016545,90674.0,90673.0,0.0556175]
[1764352911053,0.09704374,90718.0,90673.0,0.0556175]
[1764352911054,0.0110238,90704.0,90685.0,0.055616]
[1764352911245,1.50027568,90686.0,90685.0,0.455616]
[1764352911445,0.17624,90719.0,90685.0,0.4]
[1764352911647,0.0247537,90705.0,90690.0,0.25838006]
[1764352911840,1.5,90704.0,90699.0,0.0110243]
[1764352912042,0.0110238,90703.0,90694.0,0.0110248]
[1764352912646,0.04351,90693.0,90692.0,0.00016545]
[1764352913549,0.40351,90693.0,90692.0,0.00016545]
[1764352913754,0.0247558,90688.0,90670.0,0.25838006]
[1764352914044,0.0110242,90700.0,90670.0,0.62838006]
[1764352914254,0.0110246,90697.0,90692.0,0.0110251]
[1764352914552,0.0110246,90697.0,90687.0,0.0110257]
[1764352914749,0.00016545,90701.0,90683.0,0.00016545]
[1764352914945,0.00753143,90700.0,90691.0,0.0110252]
[1764352915351,0.00753143,90700.0,90693.0,0.0110251]
[1764352915943,0.00753143,90700.0,90699.0,0.0110243]
[1764352915944,0.02217,90700.0,90699.0,0.0110243]
[1764352916347,0.02217,90700.0,90690.0,0.25838006]
[1764352916549,0.02217,90700.0,90693.0,0.003]
[1764352917742,0.00016545,90701.0,90700.0,0.0561442]
[1764352918546,0.04390545,90701.0,90693.0,0.003]
[1764352918742,0.04374,90694.0,90693.0,0.003]
[1764352918942,0.04374,90694.0,90690.0,0.0110253]
[1764352919149,0.04374,90699.0,90698.0,0.0110244]
[1764352919354,0.00016545,90701.0,90700.0,0.04512]
[1764352920456,0.01373,90720.0,90700.0,0.42512]
[1764352920757,0.01375,90750.0,90721.0,0.0110216]
[1764352920949,0.0110209,90727.0,90721.0,0.0110216]
[1764352921350,1.5,90735.0,90716.0,0.0110222]
[1764352921351,0.04374,90721.0,90716.0,0.0110222]
[1764352921649,0.04374,90721.0,90710.0,0.25838006]
[1764352921650,0.0110207,90730.0,90721.0,0.0110217]
[1764352921855,0.0110201,90734.0,90727.0,0.0110209]
[1764352922047,0.0110205,90731.0,90727.0,0.0110209]
[1764352922247,1.50016535,90735.0,90721.0,0.001]
[1764352922248,0.04374,90722.0,90721.0,0.001]
[1764352922442,0.005,90727.0,90721.0,0.0350717]
[1764352922648,0.005,90727.0,90724.0,0.0110212]
[1764352922952,0.006,90734.0,90727.0,0.0120209]
[1764352923453,0.001,90730.0,90727.0,0.0120209]
[1764352923663,0.001,90730.0,90729.0,0.02305]
[1764352923851,0.001,90730.0,90729.0,0.04512]
[1764352924048,0.006,90734.0,90730.0,0.0110206]
[1764352924352,0.04374,90717.0,90716.0,0.00016535]
[1764352924552,0.005,90722.0,90720.0,0.0110217]
[1764352924749,0.001,90734.0,90716.0,0.01118755]
[1764352924954,0.04874,90730.0,90729.0,0.001]
[1764352925154,0.4497606,90730.0,90729.0,0.001]
[1764352925455,0.02101,90722.0,90721.0,0.0110215]
[1764352925653,0.04374,90717.0,90716.0,0.00016535]
[1764352925954,0.04374,90706.0,90705.0,0.0110235]
[1764352926359,0.04374,90700.0,90699.0,0.0110243]
[1764352927454,0.04374,90691.0,90690.0,0.00016535]
[1764352927655,0.41374,90691.0,90690.0,0.00016535]
[1764352927868,0.0547653,90691.0,90690.0,0.00016535]
[1764352928159,0.4647653,90691.0,90690.0,0.00016535]
[1764352928664,0.04374,90691.0,90690.0,0.01119075]
[1764352928956,0.04374,90691.0,90690.0,0.00016535]
[1764352929157,0.48374,90691.0,90690.0,0.00016535]
[1764352929360,0.04374,90674.0,90673.0,0.00012134]
[1764352929762,0.02101,90684.0,90683.0,0.0110262]
[1764352930156,0.15349,90692.0,90691.0,0.0110253]
[1764352930673,0.00016535,90701.0,90700.0,0.0110242]
[1764352930961,0.04390535,90701.0,90700.0,0.0110242]
[1764352931854,0.04374,90691.0,90690.0,0.0120254]
[1764352932060,0.04374,90691.0,90690.0,0.001]
[1764352932061,0.0547653,90691.0,90690.0,0.001]
[1764352932457,0.04374,90691.0,90690.0,0.001]
[1764352932762,0.04390535,90701.0,90700.0,0.0110242]
[1764352933461,0.00016535,90701.0,90700.0,0.0561442]
[1764352933651,0.00016535,90701.0,90700.0,0.4861442]
[1764352934160,0.05749,90720.0,90719.0,0.0110219]
[1764352934758,0.04302,90717.0,90701.0,0.011024]
[1764352934959,0.04352,90716.0,90715.0,0.0110224]
[1764352935754,0.00016535,90718.0,90717.0,0.04351]
[1764352935963,0.00016535,90718.0,90717.0,0.43351]
[1764352937261,1.51375,90735.0,90734.0,0.0545301]
[1764352937262,1.5,90735.0,90734.0,0.0545301]
[1764352937464,0.011019,90743.0,90741.0,0.0110191]
[1764352937665,0.02373422,90742.0,90741.0,0.0110191]
[1764352937970,0.02151,90742.0,90741.0,0.0110191]
[1764352938153,0.04352,90740.0,90725.0,0.25838006]
[1764352938354,0.04352,90733.0,90732.0,0.00016535]
[1764352938558,0.50728245,90733.0,90732.0,0.00016535]
[1764352938764,0.06728245,90733.0,90732.0,0.00016535]
[1764352939456,0.48728245,90733.0,90732.0,0.00016535]
[1764352940566,0.10728245,90733.0,90732.0,0.00016535]
[1764352940765,0.06728245,90733.0,90732.0,0.00016535]
[1764352941068,0.06828245,90733.0,90732.0,0.00016535]
[1764352942068,0.07930265,90733.0,90732.0,0.00016535]
[1764352942271,0.07830265,90733.0,90732.0,0.00116535]
[1764352942660,0.44830265,90733.0,90732.0,0.00116535]
[1764352943469,0.44830265,90733.0,90713.0,0.0110226]
[1764352943470,0.02201,90722.0,90713.0,0.0110226]
[1764352943656,0.04352,90714.0,90713.0,0.0110226]
[1764352943861,0.38,90714.0,90700.0,0.01156901]
[1764352944060,0.04352,90701.0,90700.0,0.0110242]
[1764352944865,0.02151,90701.0,90700.0,0.0369642]
[1764352945171,0.04352,90701.0,90700.0,0.004]
[1764352945364,0.04368535,90710.0,90709.0,0.0110231]
[1764352945563,0.06748765,90710.0,90709.0,0.0110231]
[1764352946066,0.04368535,90710.0,90709.0,0.0110231]
[1764352947059,0.04326,90701.0,90700.0,0.0140242]
[1764352947270,0.04326,90701.0,90700.0,0.003]
[1764352947271,0.48706685,90701.0,90700.0,0.003]
[1764352947469,0.04326,90697.0,90696.0,0.0110246]
[1764352948561,0.02134,90692.0,90691.0,0.01119065]
[1764352948764,0.04326,90692.0,90691.0,0.01119065]
[1764352949858,0.001,90697.0,90691.0,0.01119065]
[1764352949859,0.001,90697.0,90696.0,0.0110247]
[1764352950072,0.01392,90705.0,90704.0,0.0110237]
[1764352950073,0.0682036,90705.0,90704.0,0.0110237]
[1764352950374,0.08087755,90705.0,90704.0,0.0110237]
[1764352950565,0.00016535,90710.0,90709.0,0.0110231]
[1764352950772,0.02150535,90710.0,90709.0,0.0110231]
[1764352951070,0.04342535,90710.0,90709.0,0.0110231]
[1764352951864,0.04442535,90710.0,90709.0,0.004]
[1764352952069,0.0643852,90692.0,90691.0,0.00016535]
[1764352952269,0.05336,90692.0,90691.0,0.00016535]
[1764352952572,0.04326,90692.0,90691.0,0.00016535]
[1764352952767,0.0110243,90699.0,90696.0,0.0110247]
[1764352952966,0.05718,90692.0,90691.0,0.00016535]
[1764352953474,0.05818,90692.0,90691.0,0.00816535]
[1764352954176,0.001,90692.0,90691.0,0.45316535]
[1764352954470,0.001,90692.0,90691.0,0.05316535]
[1764352954875,0.04426,90692.0,90691.0,0.00816535]
[1764352955076,0.04426,90692.0,90691.0,0.03134535]
[1764352955277,0.001,90692.0,90691.0,0.05316535]
[1764352955466,0.001,90692.0,90691.0,0.45316535]
[1764352955666,0.001,90692.0,90691.0,0.05316535]
[1764352956075,0.05818,90692.0,90691.0,0.00816535]
[1764352956362,0.02234,90692.0,90691.0,0.05316535]
[1764352956571,0.001,90692.0,90691.0,0.05316535]
[1764352957075,0.001,90692.0,90691.0,0.46316535]
[1764352957667,0.02150535,90710.0,90709.0,0.0110231]
[1764352958577,0.04342535,90710.0,90709.0,0.0110231]
[1764352958970,0.10342535,90710.0,90709.0,0.0110231]
[1764352959269,0.04342535,90710.0,90709.0,0.0110231]
[1764352959469,0.41442535,90710.0,90709.0,0.002]
[1764352959770,0.78442535,90710.0,90709.0,0.002]
[1764352959973,0.04326,90692.0,90691.0,0.01119065]
[1764352960985,0.05718,90701.0,90700.0,0.0110242]
[1764352961176,0.04326,90701.0,90700.0,0.0560242]
[1764352961481,0.04442535,90710.0,90709.0,0.0110231]
[1764352961670,0.06791528,90710.0,90709.0,0.0110231]
[1764352962279,0.04442535,90710.0,90709.0,0.0110231]
[1764352962775,0.04342535,90710.0,90709.0,0.0110231]
[1764352963485,0.04442535,90710.0,90709.0,0.0120231]
[1764352963668,0.04442535,90710.0,90709.0,0.001]
[1764352963878,0.46442535,90710.0,90709.0,0.001]
[1764352964185,0.48791334,90710.0,90709.0,0.001]
[1764352965379,0.89791334,90710.0,90709.0,0.001]
[1764352965981,0.90791334,90710.0,90709.0,0.001]
[1764352966572,0.04326,90692.0,90691.0,0.01119065]